bitfinex-derivatives/quotes_SOLF0:USTF0_20250514
["timestamp","ask_amount","ask_price","bid_price","bid_amount"]
[1747233745873,73.86,177.64,177.51,1.7737]
[1747233746074,73.86,177.64,177.51,75.6337]
[1747233746975,5.6293,177.62,177.58,5.6302]
[1747233747374,73.86,177.64,177.51,75.6337]
[1747233747778,5.6298,177.6,177.57,5.6305]
[1747233748078,335.282,177.63,177.51,75.6337]
[1747233748879,5.6295,177.61,177.58,5.6302]
[1747233749176,335.282,177.63,177.51,75.6337]
[1747233749380,5.6297,177.61,177.57,5.6304]
[1747233749573,335.282,177.63,177.51,75.6337]
[1747233749982,5.6297,177.61,177.57,5.6306]
[1747233750479,5.6298,177.6,177.57,5.6306]
[1747233750870,335.282,177.63,177.58,5.6303]
[1747233751181,5.6296,177.61,177.58,5.6303]
[1747233751476,335.282,177.63,177.51,75.6337]
[1747233752082,335.282,177.63,177.58,5.6303]
[1747233752277,335.282,177.63,177.52,147.5]
[1747233753081,5.6293,177.62,177.58,5.6301]
[1747233753279,335.282,177.63,177.52,147.5]
[1747233753682,335.282,177.63,177.56,5.6308]
[1747233754682,335.282,177.63,177.55,5.6312]
[1747233754881,5.6316,177.55,177.5,486.34]
[1747233755283,73.62,177.58,177.5,486.34]
[1747233755471,5.6311,177.56,177.5,486.34]
[1747233755875,5.6315,177.55,177.5,486.34]
[1747233756380,5.6315,177.55,177.52,5.6321]
[1747233756678,73.62,177.58,177.48,77.4827]
[1747233756881,73.62,177.58,177.48,75.7327]
[1747233757077,73.62,177.58,177.48,73.88]
[1747233757277,5.6319,177.54,177.48,73.88]
[1747233757881,5.6319,177.54,177.51,5.6324]
[1747233758081,73.62,177.58,177.51,5.6324]
[1747233758581,5.6318,177.54,177.51,5.6324]
[1747233758982,73.62,177.58,177.48,73.88]
[1747233759182,335.282,177.57,177.44,79.1052]
[1747233759383,335.282,177.56,177.44,79.1052]
[1747233759585,335.282,177.56,177.5,5.6328]
[1747233759783,5.6325,177.52,177.44,79.1052]
[1747233760081,73.58,177.53,177.44,75.3625]
[1747233760282,335.282,177.55,177.44,73.6]
[1747233760484,5.632,177.53,177.5,5.6326]
[1747233760683,5.632,177.53,177.44,73.6]
[1747233761010,5.632,177.53,177.5,5.6327]
[1747233761188,408.862,177.55,177.44,73.6]
[1747233762083,408.862,177.55,177.45,73.58]
[1747233762680,335.282,177.55,177.45,73.58]
[1747233762876,73.58,177.6,177.47,11.16952339]
[1747233763087,73.58,177.6,177.48,3.6535]
[1747233763277,73.58,177.6,177.49,73.62]
[1747233763483,73.58,177.6,177.49,75.4995]
[1747233763784,5.6303,177.59,177.55,5.631]
[1747233764087,73.58,177.6,177.49,75.4995]
[1747233764390,5.6309,177.57,177.54,5.6315]
[1747233764687,73.58,177.6,177.49,75.4995]
[1747233764891,5.631,177.56,177.53,5.6318]
[1747233765086,73.58,177.6,177.49,75.4995]
[1747233765388,5.6309,177.57,177.54,5.6316]
[1747233765788,5.6309,177.57,177.49,75.4995]
[1747233765991,5.6309,177.57,177.53,5.6317]
[1747233766284,5.6309,177.57,177.49,75.4995]
[1747233766589,5.6305,177.58,177.49,75.4995]
[1747233766788,73.58,177.6,177.49,75.4995]
[1747233767090,73.58,177.6,177.54,5.6315]
[1747233767387,73.58,177.6,177.49,75.4995]
[1747233767890,73.58,177.6,177.53,5.6319]
[1747233769090,5.6309,177.57,177.49,75.4995]
[1747233769489,73.58,177.6,177.49,75.4995]
[1747233770188,5.6304,177.58,177.49,75.4995]
[1747233770688,73.58,177.6,177.49,75.4995]
[1747233770890,5.6304,177.58,177.49,75.4995]
[1747233771191,73.58,177.6,177.49,75.4995]
[1747233771584,80.54931605,177.6,177.49,75.4995]
[1747233771784,335.282,177.59,177.49,75.4995]
[1747233771985,335.282,177.59,177.51,5.6326]
[1747233772580,335.282,177.59,177.49,73.62]
[1747233772785,408.782,177.59,177.49,75.5242]
[1747233772987,5.6306,177.58,177.55,5.6311]
[1747233773182,335.282,177.59,177.49,75.5242]
[1747233773591,5.6304,177.58,177.55,5.6311]
[1747233773791,335.282,177.59,177.49,75.5242]
[1747233774190,335.282,177.59,177.57,5.6305]
[1747233774692,340.9121,177.59,177.57,5.6305]
[1747233774993,335.282,177.59,177.5,73.5]
[1747233775391,335.282,177.59,177.52,5.632]
[1747233775796,335.282,177.59,177.49,75.5242]
[1747233775988,335.282,177.59,177.49,1.9042]
[1747233776394,5.632,177.53,177.49,1.9042]
[1747233776588,335.282,177.59,177.49,1.9042]
[1747233776988,335.282,177.59,177.52,5.6322]
[1747233777295,335.282,177.59,177.49,1.9042]
[1747233779190,335.282,177.59,177.58,5.6304]
[1747233779410,73.46,177.63,177.53,73.62]
[1747233779886,5.6297,177.61,177.57,5.6304]
[1747233780193,5.6297,177.61,177.53,73.62]
[1747233780502,5.6297,177.61,177.58,5.6303]
[1747233780691,5.6291,177.62,177.53,73.62]
[1747233781091,5.6289,177.63,177.53,73.62]
[1747233781295,635.58625,177.64,177.53,73.62]
[1747233781496,635.58625,177.64,177.56,5.6309]
[1747233781796,635.58625,177.64,177.53,73.62]
[1747233782195,5.6295,177.61,177.53,73.62]
[1747233782795,5.6292,177.62,177.58,5.6301]
[1747233783092,1.94625,177.64,177.53,73.62]
[1747233783689,1.94625,177.64,177.55,11.15169442]
[1747233783890,1.94625,177.64,177.63,5.6288]
[1747233784102,335.282,177.65,177.62,73.6]
[1747233784297,5.6267,177.7,177.63,1.9092]
[1747233784491,5.6269,177.69,177.65,5.6279]
[1747233784891,73.4,177.72,177.63,1.9092]
[1747233785598,5.6279,177.66,177.63,5.6287]
[1747233785801,5.6279,177.66,177.59,73.6]
[1747233786002,5.6279,177.66,177.63,5.6288]
[1747233786396,73.4,177.72,177.59,73.6]
[1747233786596,335.282,177.71,177.64,5.6282]
[1747233786801,5.6271,177.69,177.59,73.6]
[1747233787004,335.282,177.71,177.59,73.6]
[1747233787194,335.282,177.71,177.64,5.6282]
[1747233787494,335.282,177.71,177.59,73.6]
[1747233787801,335.282,177.71,177.65,5.628]
[1747233787998,408.642,177.71,177.59,73.6]
[1747233788195,408.642,177.71,177.59,146.96]
[1747233788496,5.6271,177.69,177.59,146.96]
[1747233788695,408.642,177.71,177.59,146.96]
[1747233789001,5.6266,177.7,177.66,5.6275]
[1747233789501,5.6271,177.69,177.65,5.6281]
[1747233790096,408.642,177.71,177.64,5.6284]
[1747233790599,5.6274,177.68,177.59,146.96]
[1747233790898,5.6274,177.68,177.65,5.6279]
[1747233791397,5.627,177.69,177.65,5.6279]
[1747233791697,5.627,177.69,177.66,5.6277]
[1747233791899,5.627,177.69,177.59,146.92]
[1747233792696,5.6272,177.68,177.59,146.92]
[1747233793001,408.602,177.71,177.63,5.6285]
[1747233793301,5.6274,177.68,177.59,146.92]
[1747233793603,5.6274,177.68,177.64,5.6283]
[1747233793796,408.602,177.71,177.57,1.8444]
[1747233793995,408.602,177.71,177.58,73.34]
[1747233794201,5.627,177.69,177.58,73.34]
[1747233794803,408.562,177.71,177.58,73.34]
[1747233795199,335.282,177.71,177.58,73.34]
[1747233795398,5.627,177.69,177.58,73.34]
[1747233795798,5.627,177.69,177.65,5.6279]
[1747233796506,5.627,177.69,177.66,5.6278]
[1747233798705,5.6272,177.68,177.66,5.6278]
[1747233798903,408.562,177.71,177.66,5.6278]
[1747233799237,408.562,177.71,177.67,5.6275]
[1747233799605,408.562,177.71,177.59,6.9616702]
[1747233800103,5.6271,177.69,177.66,5.6276]
[1747233800805,5.6275,177.67,177.59,6.9616702]
[1747233801005,408.562,177.71,177.6,73.34]
[1747233801303,408.562,177.71,177.66,5.6278]
[1747233801808,5.627,177.69,177.66,5.6278]
[1747233802908,5.6267,177.7,177.6,73.34]
[1747233803506,5.6267,177.7,177.67,5.6273]
[1747233803806,5.6269,177.69,177.6,73.34]
[1747233804007,335.282,177.71,177.68,5.6272]
[1747233804206,408.442,177.71,177.6,73.34]
[1747233804407,335.282,177.7,177.6,73.34]
[1747233804608,335.282,177.7,177.64,5.6282]
[1747233805011,335.282,177.7,177.6,73.34]
[1747233805312,335.282,177.7,177.63,5.6286]
[1747233806013,5.6281,177.66,177.63,5.6286]
[1747233806210,335.282,177.7,177.63,5.6286]
[1747233806613,335.282,177.7,177.62,5.629]
[1747233807013,335.282,177.7,177.6,73.34]
[1747233807532,5.6281,177.66,177.63,5.6288]
[1747233808215,5.6282,177.65,177.63,5.6288]
[1747233808414,335.282,177.7,177.63,5.6288]
[1747233808914,5.628,177.66,177.63,5.6288]
[1747233809814,5.6282,177.65,177.63,5.6288]
[1747233810110,335.282,177.7,177.58,73.34]
[1747233810314,6.9616702,177.68,177.57,75.1844]
[1747233810614,5.6287,177.64,177.57,75.1844]
[1747233810913,80.0616702,177.65,177.53,6.9616702]
[1747233811109,1.9244,177.64,177.57,5.6305]
[1747233811512,5.6298,177.6,177.57,5.6305]
[1747233811907,5.6293,177.62,177.54,73.34]
[1747233812113,335.282,177.63,177.54,73.34]
[1747233813419,335.282,177.63,177.61,5.6292]
[1747233813809,335.282,177.63,177.54,73.34]
[1747233814015,335.282,177.63,177.55,146.4]
[1747233814217,335.282,177.63,177.56,73.34]
[1747233814521,335.282,177.63,177.61,5.6294]
[1747233815221,335.282,177.63,177.56,73.34]
[1747233815824,335.282,177.63,177.58,5.6302]
[1747233816024,335.282,177.63,177.56,73.34]
[1747233816915,340.911,177.63,177.59,5.6298]
[1747233817116,340.911,177.63,177.56,73.34]
[1747233817523,335.282,177.63,177.61,5.6294]
[1747233817922,335.282,177.63,177.56,73.34]
[1747233818125,335.282,177.63,177.61,5.6294]
[1747233818925,335.282,177.63,177.6,5.6297]
[1747233819127,335.282,177.63,177.56,73.34]
[1747233820424,335.282,177.63,177.57,5.6304]
[1747233820622,335.282,177.63,177.52,486.64]
[1747233820821,5.6297,177.6,177.56,5.6308]
[1747233821125,5.6297,177.6,177.53,73.02]
[1747233821321,5.6301,177.59,177.56,5.6308]
[1747233821921,5.6301,177.59,177.57,5.6307]
[1747233822126,78.6099,177.6,177.57,5.6307]
[1747233822327,72.98,177.6,177.56,5.6308]
[1747233822624,78.6098,177.6,177.53,73.02]
[1747233822825,72.98,177.6,177.53,73.02]
[1747233823023,72.98,177.6,177.56,5.6308]
[1747233823225,5.6303,177.59,177.53,73.02]
[1747233823626,72.98,177.6,177.57,5.6307]
[1747233823827,5.6292,177.62,177.53,73.02]
[1747233824021,78.5892,177.62,177.53,73.02]
[1747233824222,408.222,177.63,177.53,73.02]
[1747233824421,413.8511,177.63,177.53,73.02]
[1747233825227,408.222,177.63,177.53,73.02]
[1747233825930,413.8508,177.63,177.53,73.02]
[1747233826130,413.8508,177.63,177.6,5.6297]
[1747233826522,5.6292,177.62,177.59,5.63]
[1747233826744,408.222,177.63,177.53,79.9816702]
[1747233827018,413.8509,177.63,177.6,5.6295]
[1747233827529,408.222,177.63,177.6,5.6295]
[1747233827728,408.222,177.63,177.53,79.9816702]
[1747233827929,408.222,177.63,177.53,73.02]
[1747233828125,408.222,177.63,177.53,73.04]
[1747233828331,408.222,177.63,177.58,5.6304]
[1747233829226,408.222,177.63,177.59,5.63]
[1747233829432,335.282,177.63,177.53,73.04]
[1747233830231,335.282,177.63,177.56,6.9616702]
[1747233830427,335.282,177.63,177.62,5.6291]
[1747233832334,335.282,177.63,177.57,3.6797]
[1747233832526,335.282,177.63,177.55,73.02]
[1747233832926,5.6296,177.61,177.57,5.6305]
[1747233833132,335.282,177.63,177.57,5.6305]
[1747233833340,335.282,177.63,177.53,73.02]
[1747233833528,335.282,177.63,177.58,5.6302]
[1747233833932,5.6296,177.61,177.58,5.6302]
[1747233834132,335.282,177.63,177.53,73.02]
[1747233834334,335.282,177.63,177.59,5.6299]
[1747233834829,5.6294,177.62,177.59,5.6299]
[1747233835132,335.282,177.63,177.58,5.6302]
[1747233835332,335.282,177.63,177.53,73.02]
[1747233835541,335.282,177.63,177.56,5.6307]
[1747233835830,5.6299,177.6,177.53,73.02]
[1747233836332,5.6304,177.58,177.53,73.02]
[1747233836736,72.8,177.61,177.53,73.02]
[1747233836928,5.6299,177.6,177.53,73.02]
[1747233837332,72.8,177.61,177.53,73.02]
[1747233837932,78.4294,177.61,177.58,5.6302]
[1747233838232,72.8,177.61,177.53,73.02]
[1747233838628,72.8,177.61,177.6,5.6297]
[1747233838836,72.8,177.61,177.53,79.9816702]
[1747233839024,72.8,177.61,177.6,5.6297]
[1747233840436,72.8,177.61,177.59,5.6299]
[1747233840638,72.8,177.61,177.53,73.02]
[1747233841132,78.4296,177.61,177.53,73.02]
[1747233841437,335.282,177.63,177.53,73.02]
[1747233841634,5.6296,177.61,177.53,73.02]
[1747233841937,72.72,177.62,177.53,73.02]
[1747233842434,5.6295,177.61,177.53,73.02]
[1747233842638,72.72,177.62,177.53,73.02]
[1747233842834,72.72,177.62,177.53,73.04]
[1747233843034,5.6294,177.61,177.53,73.04]
[1747233843634,72.7,177.62,177.52,486.64]
[1747233843834,72.7,177.62,177.52,559.68]
[1747233844046,72.68,177.61,177.52,559.68]
[1747233844444,72.68,177.61,177.57,5.6306]
[1747233844642,78.3097,177.61,177.57,5.6306]
[1747233844836,78.3097,177.61,177.52,559.68]
[1747233845032,72.66,177.62,177.52,559.68]
[1747233845942,335.282,177.63,177.52,559.68]
[1747233846143,5.6296,177.61,177.52,559.68]
[1747233846541,5.6296,177.61,177.57,5.6305]
[1747233847141,72.64,177.62,177.55,5.6311]
[1747233847440,72.64,177.62,177.52,559.68]
[1747233847638,72.64,177.62,177.55,5.6313]
[1747233847942,335.282,177.63,177.52,559.68]
[1747233848242,72.62,177.62,177.56,5.6309]
[1747233848644,5.6303,177.59,177.56,5.6309]
[1747233848941,335.282,177.63,177.52,559.68]
[1747233849144,1.8535,177.61,177.51,3.7832]
[1747233849348,407.902,177.6,177.51,3.7832]
[1747233849641,335.282,177.59,177.49,72.62]
[1747233849842,342.2436702,177.59,177.46,72.62]
[1747233850043,480.502,177.58,177.46,72.62]
[1747233850348,5.6327,177.51,177.46,72.62]
[1747233850752,480.502,177.58,177.47,5.6336]
[1747233850952,480.502,177.58,177.46,72.62]
[1747233850953,6.9616702,177.56,177.46,72.62]
[1747233851253,3.6843,177.55,177.47,5.6338]
[1747233851453,3.6843,177.55,177.45,3.6456]
[1747233851649,72.58,177.56,177.45,10.6072702]
[1747233851850,5.6321,177.53,177.45,10.6072702]
[1747233852050,72.58,177.56,177.45,10.6072702]
[1747233852553,5.6317,177.54,177.45,10.6072702]
[1747233852751,72.58,177.56,177.45,10.6072702]
[1747233853053,5.6314,177.55,177.45,10.6072702]
[1747233853356,72.58,177.56,177.45,10.6072702]
[1747233853552,5.6318,177.54,177.51,5.6324]
[1747233853752,72.58,177.56,177.45,10.6072702]
[1747233854154,5.6316,177.54,177.45,10.6072702]
[1747233854753,5.6316,177.54,177.5,5.6327]
[1747233855154,72.58,177.56,177.45,83.2472702]
[1747233855548,72.58,177.56,177.45,10.6072702]
[1747233855753,5.6321,177.53,177.5,5.6329]
[1747233856252,5.6317,177.54,177.45,10.6072702]
[1747233856555,335.282,177.55,177.45,10.6072702]
[1747233856950,335.282,177.55,177.52,5.6321]
[1747233857351,335.282,177.55,177.45,10.6072702]
[1747233858060,335.282,177.55,177.52,5.6322]
[1747233858356,340.9134,177.55,177.52,5.6322]
[1747233858568,335.282,177.55,177.45,10.6072702]
[1747233858958,5.632,177.54,177.45,10.6072702]
[1747233859155,5.632,177.54,177.46,72.64]
[1747233859759,5.632,177.54,177.5,5.6326]
[1747233860058,340.9134,177.55,177.46,72.64]
[1747233860254,335.282,177.55,177.46,72.64]
[1747233860455,335.282,177.55,177.53,5.632]
[1747233860852,72.64,177.58,177.46,72.64]
[1747233861059,542.9622976,177.6,177.54,5.6315]
[1747233861261,72.48,177.59,177.48,6.9616702]
[1747233861558,72.48,177.59,177.52,5.6321]
[1747233861853,5.6313,177.56,177.52,5.6321]
[1747233862058,5.6313,177.56,177.48,79.6216702]
[1747233862259,72.48,177.59,177.48,72.66]
[1747233862462,5.632,177.53,177.45,10.6072702]
[1747233862762,5.632,177.53,177.45,83.2672702]
[1747233862960,5.6323,177.52,177.49,5.633]
[1747233863758,5.6326,177.51,177.48,5.6334]
[1747233864060,72.44,177.54,177.45,83.2672702]
[1747233864061,72.44,177.54,177.45,10.6072702]
[1747233864259,5.6325,177.52,177.49,5.6332]
[1747233864659,72.44,177.54,177.45,10.6072702]
[1747233865559,5.6325,177.52,177.49,5.633]
[1747233865857,72.44,177.54,177.45,10.6072702]
[1747233866160,72.44,177.54,177.44,72.66]
[1747233866360,5.6328,177.51,177.48,5.6335]
[1747233866553,74.3128,177.54,177.48,5.6335]
[1747233866754,74.3128,177.54,177.44,72.66]
[1747233867766,5.6322,177.53,177.49,5.633]
[1747233867966,74.3128,177.54,177.49,5.633]
[1747233868166,5.6324,177.52,177.49,5.633]
[1747233868467,74.3128,177.54,177.5,5.6329]
[1747233868766,5.6323,177.52,177.5,5.6329]
[1747233869163,74.3128,177.54,177.44,72.66]
[1747233869361,79.9445,177.54,177.51,5.6325]
[1747233869665,72.44,177.54,177.44,72.66]
[1747233870268,78.0718,177.54,177.44,72.66]
[1747233870567,72.44,177.54,177.44,72.66]
[1747233870969,5.6322,177.53,177.49,5.633]
[1747233871169,5.6322,177.53,177.44,72.66]
[1747233871369,72.44,177.54,177.44,72.66]
[1747233871564,5.6325,177.52,177.45,72.66]
[1747233871766,72.44,177.54,177.45,72.66]
[1747233872670,5.6322,177.53,177.49,5.633]
[1747233873175,5.6324,177.52,177.49,5.633]
[1747233873468,5.6324,177.52,177.5,5.6329]
[1747233873672,72.44,177.54,177.45,72.66]
[1747233873865,5.6322,177.53,177.5,5.6327]
[1747233874067,72.44,177.54,177.5,5.6327]
[1747233874373,5.6322,177.53,177.5,5.6327]
[1747233875170,78.0718,177.54,177.51,5.6325]
[1747233875375,78.0718,177.54,177.45,72.66]
[1747233875376,335.282,177.55,177.45,79.6216702]
[1747233875777,335.282,177.55,177.52,5.6321]
[1747233876181,340.9135,177.55,177.52,5.6321]
[1747233876476,335.282,177.55,177.45,79.6216702]
[1747233876777,340.9135,177.55,177.45,79.6216702]
[1747233877274,335.282,177.55,177.45,79.6216702]
[1747233877475,335.282,177.55,177.51,5.6324]
[1747233878079,5.6317,177.54,177.51,5.6324]
[1747233878475,335.282,177.55,177.5,5.6328]
[1747233879078,5.632,177.53,177.5,5.6328]
[1747233879778,335.282,177.55,177.46,72.24]
[1747233880278,5.6318,177.54,177.46,72.24]
[1747233880773,5.6322,177.53,177.49,5.633]
[1747233880972,5.6322,177.53,177.46,72.24]
[1747233881174,335.282,177.55,177.46,72.24]
[1747233881594,335.282,177.55,177.47,3.7307]
[1747233881974,5.6317,177.54,177.51,5.6324]
[1747233882578,5.6324,177.52,177.49,5.6331]
[1747233883480,5.6321,177.53,177.5,5.6329]
[1747233883878,5.6321,177.53,177.47,3.7307]
[1747233884183,5.6323,177.52,177.49,5.633]
[1747233884578,5.6323,177.52,177.47,3.7307]
[1747233885181,5.632,177.53,177.5,5.6328]
[1747233885480,335.282,177.55,177.5,5.6328]
[1747233885779,5.632,177.53,177.5,5.6328]
[1747233886280,5.632,177.53,177.51,5.6325]
[1747233886474,335.282,177.55,177.47,3.7307]
[1747233886680,335.282,177.55,177.52,5.6322]
[1747233887083,335.282,177.55,177.47,3.7307]
[1747233887273,539.27644484,177.6,177.55,5.6313]
[1747233887580,5.6306,177.58,177.55,5.6313]
[1747233888978,5.6307,177.57,177.55,5.6313]
[1747233889277,5.6307,177.57,177.53,5.6316]
[1747233889581,5.631,177.56,177.51,72.24]
[1747233889776,5.631,177.56,177.53,5.6319]
[1747233890177,5.631,177.56,177.51,72.24]
[1747233890377,611.37644484,177.6,177.51,72.24]
[1747233890771,611.37644484,177.6,177.49,72.1]
[1747233890772,5.6323,177.52,177.49,77.873]
[1747233891098,618.33811504,177.6,177.49,72.24]
[1747233891381,335.282,177.59,177.49,72.24]
[1747233891580,5.632,177.53,177.5,5.6326]
[1747233891884,5.632,177.53,177.49,72.24]
[1747233892077,5.632,177.53,177.5,5.6328]
[1747233892277,5.632,177.53,177.49,72.24]
[1747233892582,5.6318,177.54,177.51,5.6324]
[1747233893676,5.632,177.53,177.51,5.6324]
[1747233893879,335.282,177.59,177.51,5.6324]
[1747233894177,335.282,177.58,177.51,5.6324]
[1747233894479,335.282,177.58,177.49,72.24]
[1747233895278,5.6322,177.53,177.5,5.6328]
[1747233895481,335.282,177.58,177.49,72.24]
[1747233895678,5.6315,177.55,177.52,5.6322]
[1747233895880,335.282,177.58,177.52,5.6322]
[1747233896479,5.6318,177.54,177.49,72.24]
[1747233896781,335.282,177.58,177.49,72.24]
[1747233897083,5.6315,177.55,177.52,5.6323]
[1747233897280,335.282,177.58,177.52,5.6323]
[1747233898672,335.282,177.58,177.53,5.6319]
[1747233898983,5.6314,177.55,177.53,5.6319]
[1747233900287,5.6317,177.54,177.52,5.6322]
[1747233900483,335.282,177.58,177.49,72.24]
[1747233900683,335.282,177.58,177.49,79.2016702]
[1747233901182,335.282,177.58,177.5,71.88]
[1747233901982,335.282,177.58,177.57,5.6307]
[1747233902187,203.99444484,177.6,177.54,72.22]
[1747233902882,203.99444484,177.6,177.51,72.22]
[1747233903387,283.17611504,177.6,177.5,72.22]
[1747233903587,6.9616702,177.57,177.47,3.7307]
[1747233903784,73.6842,177.56,177.48,5.6333]
[1747233904180,73.6842,177.56,177.46,72.22]
[1747233904405,5.632,177.53,177.49,5.6332]
[1747233904586,335.282,177.55,177.49,5.6332]
[1747233904794,5.6322,177.53,177.49,5.6332]
[1747233904982,5.6322,177.53,177.5,5.6329]
[1747233905186,335.282,177.55,177.46,72.22]
[1747233905390,5.6325,177.52,177.46,72.22]
[1747233905591,335.282,177.55,177.48,5.6333]
[1747233905784,5.6322,177.53,177.46,72.22]
[1747233906088,335.282,177.55,177.49,5.6329]
[1747233906691,335.282,177.55,177.46,72.22]
[1747233907094,340.9136,177.55,177.46,72.22]
[1747233907293,340.9136,177.55,177.52,5.6322]
[1747233907791,335.282,177.55,177.46,72.22]
[1747233908293,340.9135,177.55,177.46,72.22]
[1747233908491,335.282,177.55,177.46,72.22]
[1747233908993,335.282,177.55,177.43,493.5216702]
[1747233909191,407.062,177.55,177.43,486.56]
[1747233909492,342.2436702,177.54,177.43,558.34]
[1747233911297,342.2436702,177.54,177.43,71.78]
[1747233911601,6.9616702,177.51,177.43,71.78]
[1747233911799,6.9616702,177.48,177.37,77.353]
[1747233911990,407.002,177.47,177.41,5.6358]
[1747233912290,407.002,177.47,177.37,77.353]
[1747233912491,407.002,177.47,177.45,5.6343]
[1747233913488,5.6344,177.46,177.37,77.353]
[1747233913688,407.002,177.47,177.38,71.78]
[1747233913993,5.6325,177.52,177.48,5.6335]
[1747233914205,6.9616702,177.55,177.44,71.78]
[1747233914499,5.6327,177.51,177.46,5.6339]
[1747233914793,6.9616702,177.52,177.37,12.5346702]
[1747233914994,6.9616702,177.52,177.45,5.6345]
[1747233915190,6.9616702,177.52,177.4,71.78]
[1747233915492,6.9616702,177.52,177.37,12.5346702]
[1747233915687,6.9616702,177.49,177.38,71.78]
[1747233915884,73.5146,177.48,177.38,71.78]
[1747233916291,5.6346,177.45,177.41,5.6358]
[1747233916695,5.6346,177.45,177.42,5.6354]
[1747233917001,73.5146,177.48,177.38,71.78]
[1747233917695,5.6342,177.46,177.43,5.6349]
[1747233918197,73.5146,177.48,177.38,71.78]
[1747233918398,5.634,177.47,177.44,5.6346]
[1747233919190,79.1482,177.48,177.45,5.6345]
[1747233919595,73.5146,177.48,177.38,71.78]
[1747233920295,73.5146,177.48,177.44,5.6346]
[1747233920799,5.6339,177.47,177.44,5.6346]
[1747233921302,79.1482,177.48,177.45,5.6344]
[1747233921504,1.8346,177.48,177.38,71.78]
[1747233921702,71.78,177.49,177.38,71.78]
[1747233921892,1.8839,177.51,177.4,6.9616702]
[1747233921893,71.6,177.5,177.4,6.9616702]
[1747233922097,71.6,177.5,177.41,71.6]
[1747233922497,71.6,177.5,177.48,5.6335]
[1747233923202,71.6,177.5,177.49,5.6332]
[1747233923402,407.082,177.53,177.43,78.7616702]
[1747233923597,407.082,177.53,177.51,5.6325]
[1747233923899,335.282,177.53,177.44,5.5267]
[1747233924403,335.282,177.53,177.5,5.6327]
[1747233924601,335.282,177.53,177.44,5.5267]
[1747233925507,71.8,177.52,177.37,6.9616702]
[1747233925703,6.9616702,177.5,177.43,5.6349]
[1747233925899,406.822,177.49,177.43,5.6349]
[1747233926099,5.634,177.47,177.44,5.6346]
[1747233926703,406.822,177.49,177.38,71.8]
[1747233927300,5.6339,177.47,177.44,5.6345]
[1747233927705,406.822,177.49,177.38,71.8]
[1747233927909,335.282,177.49,177.38,71.8]
[1747233928411,335.282,177.49,177.47,5.6337]
[1747233928704,335.282,177.49,177.43,71.8]
[1747233929007,335.282,177.49,177.48,5.6335]
[1747233930105,204.06651566,177.54,177.53,5.632]
[1747233930308,204.06651566,177.54,177.44,1.9111]